fUSD/lending_fUSD_20260605
["ID","MTS","AMOUNT","RATE_DAILY","PERIOD"]
[424201640,1780654483000,-3004.024,0.00012036,2]
[424201638,1780654483000,-151.0,0.00012036,2]
[424201637,1780654483000,-150.0,0.00012019,2]
[424201630,1780654483000,-500.0,0.00011899,2]
[424201634,1780654483000,-290.2397441,0.00011939,2]
[424201635,1780654483000,-211.71041196,0.00011939,2]
[424201633,1780654483000,-3923.79319178,0.00011939,2]
[424201636,1780654483000,-191.83307155,0.00011969,2]
[424201642,1780654499000,-4673.91537712,0.00012039,2]
[424201643,1780654515000,-1200.0,0.00012038,2]
[424201644,1780654519000,231.1603831,0.00011463,7]
[424201645,1780654568000,-209.66,0.00011711,2]
[424201646,1780654679000,-150.0,0.00011456,2]
[424201656,1780654679000,-500.0,0.00011798,2]
[424201649,1780654679000,-500.0,0.00011798,2]
[424201651,1780654679000,-500.0,0.00011798,2]
[424201650,1780654679000,-500.0,0.00011798,2]
[424201653,1780654679000,-500.0,0.00011798,2]
[424201654,1780654679000,-510.98797184,0.00011798,2]
[424201655,1780654679000,-500.0,0.00011798,2]
[424201652,1780654679000,-500.0,0.00011798,2]
[424201647,1780654679000,-248.47580528,0.00011456,2]
[424201648,1780654679000,-165.02158704,0.00011699,2]
[424201658,1780654679000,-500.0,0.00011798,2]
[424201659,1780654679000,-500.0,0.00011798,2]
[424201661,1780654679000,-500.0,0.00011798,2]
[424201662,1780654679000,-500.0,0.00011798,2]
[424201660,1780654679000,-500.0,0.00011798,2]
[424201663,1780654679000,-500.0,0.00011798,2]
[424201665,1780654679000,-500.0,0.00011798,2]
[424201664,1780654679000,-500.0,0.00011798,2]
[424201666,1780654679000,-500.0,0.00011798,2]
[424201669,1780654679000,-234.98715335,0.00011798,2]
[424201668,1780654679000,-500.0,0.00011798,2]
[424201667,1780654679000,-350.00000001,0.00011798,2]
[424201657,1780654679000,-500.0,0.00011798,2]
[424201681,1780654680000,-5530.0,0.000119,3]
[424201677,1780654680000,-160.0,0.00011802,2]
[424201678,1780654680000,-215.77576141,0.00011803,2]
[424201676,1780654680000,-2000.0,0.000118,2]
[424201679,1780654680000,-216.3798112,0.00011839,2]
[424201674,1780654680000,-262.05910313,0.00011798,2]
[424201673,1780654680000,-611.84501992,0.00011798,2]
[424201670,1780654680000,-201.31413155,0.00011798,2]
[424201671,1780654680000,-500.0,0.00011798,2]
[424201675,1780654680000,-232.94977432,0.00011798,2]
[424201680,1780654680000,-200.0,0.00011881,2]
[424201672,1780654680000,-500.0,0.00011798,2]
[424201683,1780654680000,-250.0,0.00011917,2]
[424201692,1780654680000,-150.0,0.00012038,2]
[424201688,1780654680000,-591453.3625425,0.00011979,2]
[424201693,1780654680000,-168407.42756456,0.00012039,2]
[424201691,1780654680000,-300.0,0.00012038,2]
[424201689,1780654680000,-440.0,0.00012,2]
[424201685,1780654680000,-165.02158704,0.00011939,2]
[424201686,1780654680000,-1316.04629903,0.0001194,2]
[424201687,1780654680000,-6907.8738688,0.00011979,2]
[424201684,1780654680000,-1813.47746538,0.00011939,2]
[424201690,1780654680000,-151.0,0.00012036,2]
[424201682,1780654680000,-7355.99455364,0.000119,2]
[424201694,1780654751000,1011.86624107,0.0001075,30]
[424201695,1780654777000,152.0,0.000229,30]
[424201697,1780654778000,152.0,0.00022925,30]
[424201696,1780654778000,152.0,0.000229,30]
[424201698,1780654779000,152.0,0.0002295,30]
[424201699,1780654802000,-152.0,0.00011609,7]
[424201700,1780654806000,152.0,0.00022925,30]
[424201701,1780654855000,-152.0,0.00011609,7]
[424201702,1780654908000,-152.0,0.00011618,7]
[424201705,1780654943000,1254.06841848,0.0002,120]
[424201706,1780654961000,-379.8916561,0.0001,2]
[424201707,1780654972000,29811.67770461,0.0001,9]
[424201708,1780655015000,-595.6653302,9.999e-05,2]
[424201709,1780655068000,-500.0,9.999e-05,2]
[424201711,1780655115000,-631.38743956,0.0001,2]
[424201712,1780655131000,-545.61318103,9.999e-05,2]
[424201714,1780655152000,153.37845124,9.2e-05,2]
[424201713,1780655152000,-545.61318103,9.999e-05,2]
[424201715,1780655168000,-356.30781555,9.2e-05,2]
[424201717,1780655238000,5300.0,0.000115,4]
[424201718,1780655402000,2181.76,0.00010082,14]
[424201732,1780655432000,-1200.0,9.197e-05,2]
[424201733,1780655432000,-150.0,9.197e-05,2]
[424201731,1780655432000,-1194.0,9.197e-05,2]
[424201735,1780655432000,-218.23536058,9.197e-05,2]
[424201734,1780655432000,-265.19978735,9.197e-05,2]
[424201736,1780655432000,-500.0,9.197e-05,2]
[424201730,1780655432000,-200.0,9.04e-05,2]
[424201738,1780655432000,-192.56861947,9.197e-05,2]
[424201747,1780655432000,-150.0,9.475e-05,2]
[424201745,1780655432000,-150.0,9.291e-05,2]
[424201748,1780655432000,-402.21,9.511e-05,2]
[424201737,1780655432000,-500.0,9.197e-05,2]
[424201739,1780655432000,-453.19213219,9.197e-05,2]
[424201740,1780655432000,-244.9061761,9.197e-05,2]
[424201743,1780655432000,-1285.48863449,9.2e-05,2]
[424201741,1780655432000,-500.0,9.197e-05,2]
[424201742,1780655432000,-250.0,9.2e-05,2]
[424201746,1780655432000,-150.0,9.383e-05,2]
[424201744,1780655432000,-1329.04621557,9.2e-05,2]
[424201784,1780655433000,-2178.45330141,0.000109,2]
[424201785,1780655433000,-3467.23,0.00011043,2]
[424201782,1780655433000,-1120.81,0.00010734,2]
[424201780,1780655433000,-271.67725733,0.000107,2]
[424201778,1780655433000,-10158.86,0.00010475,2]
[424201777,1780655433000,-9999.99,0.00010475,2]
[424201795,1780655433000,-152.0,0.00011618,7]
[424201783,1780655433000,-474.14,0.00010824,2]
[424201781,1780655433000,-280059.21191266,0.000107,2]
[424201779,1780655433000,-500.0,0.00010492,2]
[424201787,1780655433000,-6620.39509825,0.00011105,2]
[424201791,1780655433000,-2178.45330134,0.00011243,2]
[424201786,1780655433000,-6620.39509833,0.00011099,2]
[424201792,1780655433000,-6620.39509825,0.00011485,2]
[424201789,1780655433000,-2351.0,0.00011128,2]
[424201790,1780655433000,-433.0,0.00011128,2]
[424201793,1780655433000,-500.0,0.00011518,2]
[424201794,1780655433000,-10700.0,0.000116,4]
[424201796,1780655433000,-152.0,0.00011618,7]
[424201798,1780655433000,-1366.98372383,0.00011618,7]
[424201804,1780655433000,-152.0,0.00011627,7]
[424201774,1780655433000,-999.99,0.00010475,2]
[424201788,1780655433000,-166.66,0.00011128,2]
[424201775,1780655433000,-9999.99,0.00010475,2]
[424201749,1780655433000,-150.0,9.567e-05,2]
[424201773,1780655433000,-1745.93,0.00010475,2]
[424201800,1780655433000,-152.0,0.00011627,7]
[424201753,1780655433000,-1261.38274318,9.9e-05,2]
[424201752,1780655433000,-243.70606107,9.9e-05,2]
[424201754,1780655433000,-193.0,9.944e-05,2]
[424201755,1780655433000,-4000.0,9.944e-05,2]
[424201751,1780655433000,-2120.66265956,9.9e-05,2]
[424201750,1780655433000,-247.0,9.659e-05,2]
[424201760,1780655433000,-500.0,9.944e-05,2]
[424201759,1780655433000,-300.0,9.944e-05,2]
[424201756,1780655433000,-250.0,9.944e-05,2]
[424201758,1780655433000,-512.82131305,9.944e-05,2]
[424201772,1780655433000,-7603.45,0.00010475,2]
[424201757,1780655433000,-88.20472682,9.944e-05,2]
[424201770,1780655433000,-9999.99,0.00010475,2]
[424201761,1780655433000,-549.45006303,0.0001,2]
[424201771,1780655433000,-24999.99,0.00010475,2]
[424201767,1780655433000,-2222.28597019,0.0001012,2]
[424201769,1780655433000,-299.99,0.00010475,2]
[424201764,1780655433000,-255.0,0.00010117,2]
[424201763,1780655433000,-1680.0,0.00010117,2]
[424201765,1780655433000,-250.0,0.00010119,2]
[424201768,1780655433000,-500.0,0.00010218,2]
[424201766,1780655433000,-500.0,0.0001012,2]
[424201776,1780655433000,-5475.56,0.00010475,2]
[424201762,1780655433000,-6756.02940734,0.0001,2]
[424201806,1780655433000,-500.0,0.00011684,2]
[424201801,1780655433000,-152.0,0.00011627,7]
[424201799,1780655433000,-152.0,0.00011627,7]
[424201832,1780655433000,-940.14567061,0.000119,2]
[424201833,1780655433000,-174.39803428,0.000119,2]
[424201835,1780655433000,-4000.0,0.00011939,2]
[424201836,1780655433000,-165.21901202,0.00011939,2]
[424201834,1780655433000,-26700.0,0.000119,4]
[424201839,1780655433000,-250.0,0.00011945,2]
[424201838,1780655433000,-2231.53783879,0.00011942,2]
[424201837,1780655433000,-193.49316274,0.00011939,2]
[424201844,1780655433000,-4999.99,0.00011958,2]
[424201841,1780655433000,-152.0,0.00011958,2]
[424201840,1780655433000,-152.0,0.00011958,2]
[424201826,1780655433000,-1366.98372383,0.0001185,7]
[424201843,1780655433000,-19816.59,0.00011958,2]
[424201845,1780655433000,-150.99,0.00011958,2]
[424201849,1780655433000,-60889.903973,0.00011978,2]
[424201847,1780655433000,-152.0,0.00011961,2]
[424201855,1780655433000,-67294.6200693,0.00011986,2]
[424201850,1780655433000,-826.7696025,0.00011978,2]
[424201848,1780655433000,-10329.28,0.00011961,2]
[424201853,1780655433000,-215.77576141,0.00011979,2]
[424201852,1780655433000,-152.0,0.00011979,2]
[424201851,1780655433000,-1560.86,0.00011978,2]
[424201854,1780655433000,-205.76663207,0.00011986,2]
[424201797,1780655433000,-152.0,0.00011618,7]
[424201846,1780655433000,-12852.43,0.00011958,2]
[424201823,1780655433000,-21400.0,0.000118,4]
[424201842,1780655433000,-46621.05,0.00011958,2]
[424201830,1780655433000,-14642.4981,0.00011858,2]
[424201803,1780655433000,-152.0,0.00011627,7]
[424201825,1780655433000,-227.1152959,0.0001185,7]
[424201802,1780655433000,-152.0,0.00011627,7]
[424201805,1780655433000,-160.0,0.00011664,2]
[424201807,1780655433000,-500.0,0.00011684,2]
[424201808,1780655433000,-220.48314855,0.00011684,2]
[424201809,1780655433000,-150.0,0.00011684,2]
[424201812,1780655433000,-442.0,0.00011684,2]
[424201819,1780655433000,-188.38600516,0.00011779,2]
[424201814,1780655433000,-150.0,0.00011704,2]
[424201811,1780655433000,-500.0,0.00011684,2]
[424201813,1780655433000,-16000.0,0.000117,4]
[424201810,1780655433000,-442.0,0.00011684,2]
[424201815,1780655433000,-150.0,0.00011704,2]
[424201820,1780655433000,-162.11,0.000118,2]
[424201822,1780655433000,-2865.51,0.000118,2]
[424201821,1780655433000,-150.0,0.000118,2]
[424201828,1780655433000,-12659.01789838,0.00011858,2]
[424201827,1780655433000,-2178.45330134,0.00011852,2]
[424201829,1780655433000,-1317.6314,0.00011858,2]
[424201824,1780655433000,-150.0,0.0001185,7]
[424201817,1780655433000,-167.83494967,0.00011704,2]
[424201816,1780655433000,-150.0,0.00011704,2]
[424201818,1780655433000,-166.66,0.0001174,2]
[424201831,1780655433000,-6620.39509825,0.00011866,2]
[424201901,1780655434000,-1013.97488959,0.00012399,3]
[424201903,1780655434000,-300.0,0.00012399,2]
[424201896,1780655434000,-12659.01789833,0.00012367,2]
[424201894,1780655434000,-150.51833314,0.00012329,2]
[424201897,1780655434000,-2865.51,0.0001239,2]
[424201890,1780655434000,-344.4703978,0.00012329,2]
[424201891,1780655434000,-344.4703978,0.00012329,2]
[424201892,1780655434000,-344.4703978,0.00012329,2]
[424201885,1780655434000,-201.83241452,0.00012329,2]
[424201887,1780655434000,-186.18115721,0.00012329,2]
[424201899,1780655434000,-151.0,0.00012397,2]
[424201893,1780655434000,-344.4703978,0.00012329,2]
[424201905,1780655434000,-151.0,0.000124,2]
[424201915,1780655434000,-500.0,0.000124,2]
[424201900,1780655434000,-1013.97488959,0.00012399,3]
[424201895,1780655434000,-166.66,0.00012352,2]
[424201902,1780655434000,-250.0,0.00012399,2]
[424201904,1780655434000,-670.46851618,0.00012399,2]
[424201906,1780655434000,-151.0,0.000124,2]
[424201909,1780655434000,-500.0,0.000124,2]
[424201908,1780655434000,-500.0,0.000124,2]
[424201914,1780655434000,-500.0,0.000124,2]
[424201907,1780655434000,-500.0,0.000124,2]
[424201911,1780655434000,-500.0,0.000124,2]
[424201913,1780655434000,-500.0,0.000124,2]
[424201912,1780655434000,-500.0,0.000124,2]
[424201889,1780655434000,-344.4703978,0.00012329,2]
[424201898,1780655434000,-151.0,0.00012397,2]
[424201886,1780655434000,-150.52165906,0.00012329,2]
[424201861,1780655434000,-1013.97488959,0.00012038,3]
[424201884,1780655434000,-871.29,0.00012329,2]
[424201856,1780655434000,-76104.3666933,0.00011987,2]
[424201857,1780655434000,-151.0,0.00012036,2]
[424201859,1780655434000,-1013.97488959,0.00012038,3]
[424201860,1780655434000,-1013.97488959,0.00012038,3]
[424201862,1780655434000,-1013.97488959,0.00012038,3]
[424201867,1780655434000,-357.3671277,0.00012039,2]
[424201864,1780655434000,-150.0,0.00012039,2]
[424201858,1780655434000,-186.47583835,0.00012038,2]
[424201868,1780655434000,-1024.56049,0.00012039,2]
[424201865,1780655434000,-213.0,0.00012039,2]
[424201863,1780655434000,-150.0,0.00012038,2]
[424201916,1780655434000,-500.0,0.000124,2]
[424201866,1780655434000,-302.46,0.00012039,2]
[424201888,1780655434000,-150.52165905,0.00012329,2]
[424201870,1780655434000,-1024.56049,0.00012039,2]
[424201878,1780655434000,-346.74057468,0.00012137,7]
[424201879,1780655434000,-1000.0,0.00012139,2]
[424201871,1780655434000,-1024.56049,0.00012039,2]
[424201872,1780655434000,-151.0,0.00012039,2]
[424201876,1780655434000,-12659.01789833,0.00012113,2]
[424201873,1780655434000,-151.0,0.00012039,2]
[424201880,1780655434000,-1366.98372383,0.00012199,7]
[424201874,1780655434000,-151.0,0.00012039,2]
[424201877,1780655434000,-411.89323605,0.00012137,7]
[424201875,1780655434000,-2865.51,0.00012095,2]
[424201881,1780655434000,-3292.0,0.00012241,2]
[424201882,1780655434000,-736.0,0.00012241,2]
[424201883,1780655434000,-6620.39509825,0.00012247,2]
[424201869,1780655434000,-1024.56049,0.00012039,2]
[424201910,1780655434000,-500.0,0.000124,2]
[424201966,1780655434000,-500.0,0.000124,2]
[424201928,1780655434000,-500.0,0.000124,2]
[424201949,1780655434000,-500.0,0.000124,2]
[424201945,1780655434000,-500.0,0.000124,2]
[424201946,1780655434000,-500.0,0.000124,2]
[424201953,1780655434000,-500.0,0.000124,2]
[424201955,1780655434000,-500.0,0.000124,2]
[424201950,1780655434000,-500.0,0.000124,2]
[424201958,1780655434000,-500.0,0.000124,2]
[424201969,1780655434000,-500.0,0.000124,2]
[424201968,1780655434000,-500.0,0.000124,2]
[424201959,1780655434000,-500.0,0.000124,2]
[424201967,1780655434000,-500.0,0.000124,2]
[424201963,1780655434000,-500.0,0.000124,2]
[424201965,1780655434000,-500.0,0.000124,2]
[424201948,1780655434000,-500.0,0.000124,2]
[424201960,1780655434000,-500.0,0.000124,2]
[424201957,1780655434000,-500.0,0.000124,2]
[424201961,1780655434000,-500.0,0.000124,2]
[424201964,1780655434000,-500.0,0.000124,2]
[424201971,1780655434000,-500.0,0.000124,2]
[424201978,1780655434000,-1024.56049,0.000124,2]
[424201972,1780655434000,-500.0,0.000124,2]
[424201976,1780655434000,-151.0,0.000124,2]
[424201973,1780655434000,-151.0,0.000124,2]
[424201970,1780655434000,-500.0,0.000124,2]
[424201974,1780655434000,-343.406116,0.000124,2]
[424201975,1780655434000,-151.0,0.000124,2]
[424201979,1780655434000,-1024.56049,0.000124,2]
[424201918,1780655434000,-500.0,0.000124,2]
[424201962,1780655434000,-500.0,0.000124,2]
[424201947,1780655434000,-500.0,0.000124,2]
[424201977,1780655434000,-1024.56049,0.000124,2]
[424201954,1780655434000,-500.0,0.000124,2]
[424201944,1780655434000,-500.0,0.000124,2]
[424201917,1780655434000,-500.0,0.000124,2]
[424201930,1780655434000,-500.0,0.000124,2]
[424201929,1780655434000,-500.0,0.000124,2]
[424201919,1780655434000,-500.0,0.000124,2]
[424201921,1780655434000,-500.0,0.000124,2]
[424201922,1780655434000,-500.0,0.000124,2]
[424201923,1780655434000,-500.0,0.000124,2]
[424201925,1780655434000,-500.0,0.000124,2]
[424201927,1780655434000,-500.0,0.000124,2]
[424201924,1780655434000,-500.0,0.000124,2]
[424201926,1780655434000,-500.0,0.000124,2]
[424201931,1780655434000,-500.0,0.000124,2]
[424201935,1780655434000,-500.0,0.000124,2]
[424201920,1780655434000,-500.0,0.000124,2]
[424201939,1780655434000,-500.0,0.000124,2]
[424201936,1780655434000,-500.0,0.000124,2]
[424201951,1780655434000,-500.0,0.000124,2]
[424201956,1780655434000,-500.0,0.000124,2]
[424201952,1780655434000,-500.0,0.000124,2]
[424201943,1780655434000,-500.0,0.000124,2]
[424201940,1780655434000,-500.0,0.000124,2]
[424201941,1780655434000,-500.0,0.000124,2]
[424201934,1780655434000,-500.0,0.000124,2]
[424201938,1780655434000,-500.0,0.000124,2]
[424201933,1780655434000,-500.0,0.000124,2]
[424201937,1780655434000,-500.0,0.000124,2]
[424201932,1780655434000,-500.0,0.000124,2]
[424201942,1780655434000,-500.0,0.000124,2]
[424202005,1780655435000,-9059.29671368,0.00013,5]
[424202009,1780655435000,-2178.45330134,0.00013071,2]
[424202015,1780655435000,-202.414943,0.00013373,2]
[424202007,1780655435000,-1366.98372384,0.00013012,7]
[424202008,1780655435000,-184.44540211,0.00013013,2]
[424202006,1780655435000,-6620.39509825,0.00013008,2]
[424202010,1780655435000,-12659.01789833,0.00013131,2]
[424202012,1780655435000,-275.112495,0.00013245,2]
[424202016,1780655435000,-7969.7257839,0.00013386,2]
[424202014,1780655435000,-2000.0,0.00013275,2]
[424202019,1780655435000,-165.21901198,0.0001342,2]
[424202013,1780655435000,-251.08,0.0001326,2]
[424202018,1780655435000,-6620.39509825,0.00013389,2]
[424202017,1780655435000,-4689.29211443,0.00013386,2]
[424202026,1780655435000,-500.0,0.00013425,2]
[424202020,1780655435000,-193.49316272,0.0001342,2]
[424202027,1780655435000,-500.0,0.00013425,2]
[424202028,1780655435000,-500.0,0.00013425,2]
[424202021,1780655435000,-356.91144962,0.00013421,2]
[424201999,1780655435000,-467.02658973,0.00012908,2]
[424202025,1780655435000,-500.0,0.00013425,2]
[424202011,1780655435000,-164.962334,0.00013157,2]
[424202000,1780655435000,-165.21901198,0.00012926,2]
[424201989,1780655435000,-1000.0,0.00012535,2]
[424202003,1780655435000,-322.87,0.00012987,2]
[424202024,1780655435000,-286.98646443,0.00013425,2]
[424201980,1780655435000,-1024.56049,0.000124,2]
[424201982,1780655435000,-151.0,0.000124,2]
[424201993,1780655435000,-1366.98372383,0.00012547,7]
[424201981,1780655435000,-151.0,0.000124,2]
[424201984,1780655435000,-183.82740152,0.00012416,3]
[424201983,1780655435000,-151.0,0.000124,2]
[424201992,1780655435000,-340.67294389,0.00012547,7]
[424201991,1780655435000,-150.0,0.00012547,7]
[424201988,1780655435000,-211.14205759,0.00012527,2]
[424201990,1780655435000,-150.0,0.00012547,7]
[424201986,1780655435000,-2178.45330134,0.00012462,2]
[424201987,1780655435000,-311.78240267,0.000125,2]
[424201985,1780655435000,-165.21901198,0.00012433,2]
[424201995,1780655435000,-10784.25488036,0.00012622,2]
[424201994,1780655435000,-1874.76301797,0.00012622,2]
[424201996,1780655435000,-6620.39509825,0.00012627,2]
[424202004,1780655435000,-332.34,0.00012987,2]
[424201997,1780655435000,-2865.51,0.00012685,2]
[424201998,1780655435000,-12659.01789833,0.00012877,2]
[424202001,1780655435000,-166.66,0.00012964,2]
[424202002,1780655435000,-2865.51,0.0001298,2]
[424202022,1780655435000,-277.44313622,0.00013425,2]
[424202023,1780655435000,-150.0,0.00013425,2]
[424202069,1780655435000,-500.0,0.00013698,2]
[424202058,1780655435000,-150.0,0.00013654,2]
[424202062,1780655435000,-3286.743,0.00013694,2]
[424202063,1780655435000,-226.651,0.00013694,2]
[424202060,1780655435000,-2178.45330134,0.00013681,2]
[424202056,1780655435000,-1782.74765208,0.00013646,2]
[424202057,1780655435000,-68281.65267442,0.00013646,2]
[424202061,1780655435000,-2000.0,0.0001369,2]
[424202059,1780655435000,-150.0,0.00013654,2]
[424202066,1780655435000,-500.0,0.00013698,2]
[424202065,1780655435000,-151.0,0.00013696,2]
[424202054,1780655435000,-2000.0,0.0001364,2]
[424202067,1780655435000,-500.0,0.00013698,2]
[424202071,1780655435000,-500.0,0.00013698,2]
[424202078,1780655435000,-500.0,0.00013698,2]
[424202073,1780655435000,-500.0,0.00013698,2]
[424202072,1780655435000,-500.0,0.00013698,2]
[424202070,1780655435000,-500.0,0.00013698,2]
[424202075,1780655435000,-500.0,0.00013698,2]
[424202076,1780655435000,-500.0,0.00013698,2]
[424202077,1780655435000,-500.0,0.00013698,2]
[424202074,1780655435000,-500.0,0.00013698,2]
[424202032,1780655435000,-4609.0,0.00013465,2]
[424202068,1780655435000,-500.0,0.00013698,2]
[424202055,1780655435000,-12659.01789833,0.00013641,2]
[424202064,1780655435000,-151.0,0.00013696,2]
[424202047,1780655435000,-6072.0,0.00013563,2]
[424202029,1780655435000,-275.92945887,0.00013425,2]
[424202033,1780655435000,-351.74819876,0.00013482,2]
[424202038,1780655435000,-150.0,0.00013488,2]
[424202036,1780655435000,-150.0,0.00013488,2]
[424202034,1780655435000,-150.0,0.00013488,2]
[424202035,1780655435000,-150.0,0.00013488,2]
[424202053,1780655435000,-3368.74,0.00013608,2]
[424202037,1780655435000,-150.0,0.00013488,2]
[424202039,1780655435000,-150.0,0.00013488,2]
[424202030,1780655435000,-6705.269454,0.00013425,2]
[424202040,1780655435000,-150.0,0.00013488,2]
[424202031,1780655435000,-1252.0,0.00013464,2]
[424202049,1780655435000,-150.0,0.00013571,2]
[424202046,1780655435000,-1227.0,0.00013563,2]
[424202042,1780655435000,-150.0,0.00013488,2]
[424202043,1780655435000,-150.0,0.00013488,2]
[424202041,1780655435000,-150.0,0.00013488,2]
[424202051,1780655435000,-33256.6326,0.00013599,2]
[424202045,1780655435000,-1278.961,0.00013563,2]
[424202052,1780655435000,-2000.0,0.00013599,2]
[424202050,1780655435000,-2000.0,0.0001359,2]
[424202044,1780655435000,-2154.0,0.00013516,5]
[424202048,1780655435000,-1357.0,0.00013563,2]
[424202130,1780655436000,-500.0,0.00013698,2]
[424202129,1780655436000,-540.02127567,0.00013698,2]
[424202126,1780655436000,-500.0,0.00013698,2]
[424202127,1780655436000,-500.0,0.00013698,2]
[424202121,1780655436000,-500.0,0.00013698,2]
[424202119,1780655436000,-500.0,0.00013698,2]
[424202114,1780655436000,-500.0,0.00013698,2]
[424202117,1780655436000,-500.0,0.00013698,2]
[424202112,1780655436000,-500.0,0.00013698,2]
[424202115,1780655436000,-500.0,0.00013698,2]
[424202116,1780655436000,-212.1318407,0.00013698,2]
[424202113,1780655436000,-500.0,0.00013698,2]
[424202109,1780655436000,-500.0,0.00013698,2]
[424202120,1780655436000,-500.0,0.00013698,2]
[424202139,1780655436000,-500.0,0.00013698,2]
[424202124,1780655436000,-500.0,0.00013698,2]
[424202122,1780655436000,-500.0,0.00013698,2]
[424202128,1780655436000,-500.0,0.00013698,2]
[424202125,1780655436000,-500.0,0.00013698,2]
[424202131,1780655436000,-500.0,0.00013698,2]
[424202133,1780655436000,-500.0,0.00013698,2]
[424202134,1780655436000,-500.0,0.00013698,2]
[424202137,1780655436000,-390.81705562,0.00013698,2]
[424202140,1780655436000,-500.0,0.00013698,2]
[424202143,1780655436000,-500.0,0.00013698,2]
[424202132,1780655436000,-500.0,0.00013698,2]
[424202135,1780655436000,-500.0,0.00013698,2]
[424202141,1780655436000,-500.0,0.00013698,2]
[424202111,1780655436000,-500.0,0.00013698,2]
[424202123,1780655436000,-500.0,0.00013698,2]
[424202118,1780655436000,-500.0,0.00013698,2]
[424202084,1780655436000,-500.0,0.00013698,2]
[424202110,1780655436000,-500.0,0.00013698,2]
[424202081,1780655436000,-500.0,0.00013698,2]
[424202080,1780655436000,-500.0,0.00013698,2]
[424202079,1780655436000,-500.0,0.00013698,2]
[424202083,1780655436000,-500.0,0.00013698,2]
[424202093,1780655436000,-500.0,0.00013698,2]
[424202082,1780655436000,-500.0,0.00013698,2]
[424202088,1780655436000,-500.0,0.00013698,2]
[424202092,1780655436000,-386.82400011,0.00013698,2]
[424202089,1780655436000,-500.0,0.00013698,2]
[424202091,1780655436000,-500.0,0.00013698,2]
[424202087,1780655436000,-500.0,0.00013698,2]
[424202086,1780655436000,-500.0,0.00013698,2]
[424202085,1780655436000,-500.0,0.00013698,2]
[424202107,1780655436000,-500.0,0.00013698,2]
[424202090,1780655436000,-500.0,0.00013698,2]
[424202106,1780655436000,-500.0,0.00013698,2]
[424202105,1780655436000,-500.0,0.00013698,2]
[424202094,1780655436000,-173.2792133,0.00013698,2]
[424202096,1780655436000,-500.0,0.00013698,2]
[424202099,1780655436000,-500.0,0.00013698,2]
[424202100,1780655436000,-500.0,0.00013698,2]
[424202103,1780655436000,-500.0,0.00013698,2]
[424202102,1780655436000,-249.3098753,0.00013698,2]
[424202101,1780655436000,-500.0,0.00013698,2]
[424202098,1780655436000,-500.0,0.00013698,2]
[424202104,1780655436000,-500.0,0.00013698,2]
[424202097,1780655436000,-500.0,0.00013698,2]
[424202108,1780655436000,-500.0,0.00013698,2]
[424202095,1780655436000,-236.85083914,0.00013698,2]
[424202142,1780655436000,-500.0,0.00013698,2]
[424202202,1780655436000,-500.0,0.00013698,2]
[424202136,1780655436000,-336.96748853,0.00013698,2]
[424202182,1780655436000,-500.0,0.00013698,2]
[424202181,1780655436000,-604.89787109,0.00013698,2]
[424202174,1780655436000,-500.0,0.00013698,2]
[424202177,1780655436000,-500.0,0.00013698,2]
[424202175,1780655436000,-500.0,0.00013698,2]